[Event "Titled Tuesday Blitz March 14 Late 2023"]
[White "Melikyan, Gnel"]
[Black "Drygalov, Andrey"]
[WhiteFideId "54109990"]
[BlackFideId "24171735"]
[WhiteElo "2138"]
[BlackElo "2471"]
[Result "1-0"]
[Round "07"]
[TimeControl "180+2"]
[Date "2023.03.14"]
[WhiteClock "0:00:10"]
[BlackClock "0:00:03"]

1. e4 {[%clk 0:02:54]}  c5 {[%clk 0:02:37]} 2. Nf3 {[%clk 0:02:52]}  d6 {[%clk 0:02:38]} 3. d4 {[%clk 0:02:52]}  cxd4 {[%clk 0:02:38]} 4. Nxd4 {[%clk 0:02:53]}  Nf6 {[%clk 0:02:39]} 5. Nc3 {[%clk 0:02:53]}  a6 {[%clk 0:02:40]} 6. Be3 {[%clk 0:02:52]}  e5 {[%clk 0:02:40]} 7. Nf3 {[%clk 0:02:52]}  Be7 {[%clk 0:02:39]} 8. Bc4 {[%clk 0:02:53]}  O-O {[%clk 0:02:40]} 9. O-O {[%clk 0:02:53]}  Be6 {[%clk 0:02:40]} 10. Bb3 {[%clk 0:02:53]}  Qc7 {[%clk 0:02:33]} 11. Re1 {[%clk 0:02:45]}  Rc8 {[%clk 0:02:26]} 12. Rc1 {[%clk 0:02:28]}  Nbd7 {[%clk 0:02:25]} 13. h3 {[%clk 0:02:16]}  b5 {[%clk 0:02:24]} 14. a3 {[%clk 0:02:04]}  Qb7 {[%clk 0:02:17]} 15. Nd2 {[%clk 0:01:51]}  Nb6 {[%clk 0:02:15]} 16. f4 {[%clk 0:01:47]}  exf4 {[%clk 0:02:11]} 17. Bxf4 {[%clk 0:01:47]}  Nc4 {[%clk 0:02:05]} 18. Bxc4 {[%clk 0:01:35]}  Bxc4 {[%clk 0:02:03]} 19. Nxc4 {[%clk 0:01:34]}  Rxc4 {[%clk 0:02:02]} 20. Qd3 {[%clk 0:01:30]}  Rac8 {[%clk 0:02:01]} 21. Kh1 {[%clk 0:01:29]}  b4 {[%clk 0:01:53]} 22. axb4 {[%clk 0:01:26]}  Qxb4 {[%clk 0:01:54]} 23. e5 {[%clk 0:01:05]}  dxe5 {[%clk 0:01:44]} 24. Bxe5 {[%clk 0:01:05]}  Qc5 {[%clk 0:01:36]} 25. Bxf6 {[%clk 0:01:01]}  Bxf6 {[%clk 0:01:22]} 26. Ne4 {[%clk 0:00:59]}  Qc6 {[%clk 0:01:08]} 27. Nd6 {[%clk 0:00:17]}  Rd4 {[%clk 0:00:24]} 28. Nxc8 {[%clk 0:00:16]}  Qxc8 {[%clk 0:00:23]} 29. Qxa6 {[%clk 0:00:10]}  Qd8 {[%clk 0:00:18]} 30. Qc6 {[%clk 0:00:08]}  Rd7 {[%clk 0:00:18]} 31. b4 {[%clk 0:00:06]}  h5 {[%clk 0:00:17]} 32. b5 {[%clk 0:00:07]}  Kh7 {[%clk 0:00:16]} 33. c4 {[%clk 0:00:07]}  Rc7 {[%clk 0:00:13]} 34. Qe4+ {[%clk 0:00:08]}  g6 {[%clk 0:00:13]} 35. c5 {[%clk 0:00:09]}  Qd2 {[%clk 0:00:11]} 36. Qf3 {[%clk 0:00:09]}  Be5 {[%clk 0:00:10]} 37. b6 {[%clk 0:00:09]}  Rc8 {[%clk 0:00:09]} 38. c6 {[%clk 0:00:10]}  Bd6 {[%clk 0:00:06]} 39. b7 {[%clk 0:00:10]}  Rf8 {[%clk 0:00:07]} 40. Rcd1 {[%clk 0:00:10]}  Qb4 {[%clk 0:00:06]} 41. Qe4 {[%clk 0:00:09]}  Qc5 {[%clk 0:00:07]} 42. Qd5 {[%clk 0:00:09]}  Qc3 {[%clk 0:00:01]} 43. Qxd6 {[%clk 0:00:10]}  Rg8 {[%clk 0:00:01]} 44. Qe7 {[%clk 0:00:09]}  Rg7 {[%clk 0:00:01]} 45. c7 {[%clk 0:00:10]}  Qg3 {[%clk 0:00:02]} 46. c8=Q {[%clk 0:00:10]}  h4 {[%clk 0:00:02]} 47. Qcf8 {[%clk 0:00:10]}  Rg8 {[%clk 0:00:02]} 48. Qfxf7+ {[%clk 0:00:10]}  Kh8 {[%clk 0:00:03]} 49. Qh7# {[%clk 0:00:10]} 1-0


[Site "https://www.chess.com"]

[Event "Titled Tuesday Blitz March 14 Late 2023"]
[White "Nesterov, Arseniy"]
[Black "Di Berardino, Diego Rafael"]
[WhiteFideId "24198455"]
[BlackFideId "2105446"]
[WhiteElo "2491"]
[BlackElo "2432"]
[Result "1-0"]
[Round "07"]
[TimeControl "180+2"]
[Date "2023.03.14"]
[WhiteClock "0:01:30"]
[BlackClock "0:00:03"]

1. d4 {[%clk 0:02:59]}  Nf6 {[%clk 0:02:59]} 2. c4 {[%clk 0:03:00]}  e6 {[%clk 0:02:57]} 3. Nf3 {[%clk 0:02:59]}  c5 {[%clk 0:02:56]} 4. d5 {[%clk 0:02:59]}  exd5 {[%clk 0:02:56]} 5. cxd5 {[%clk 0:03:00]}  d6 {[%clk 0:02:57]} 6. Nc3 {[%clk 0:03:01]}  g6 {[%clk 0:02:57]} 7. Nd2 {[%clk 0:03:02]}  Bg7 {[%clk 0:02:54]} 8. Nc4 {[%clk 0:03:02]}  O-O {[%clk 0:02:53]} 9. Bf4 {[%clk 0:03:03]}  Ne8 {[%clk 0:02:48]} 10. e3 {[%clk 0:03:03]}  a6 {[%clk 0:02:33]} 11. a4 {[%clk 0:03:03]}  Nd7 {[%clk 0:02:20]} 12. Nxd6 {[%clk 0:03:02]}  Nxd6 {[%clk 0:02:20]} 13. Bxd6 {[%clk 0:03:03]}  Re8 {[%clk 0:02:13]} 14. Bg3 {[%clk 0:03:04]}  Qb6 {[%clk 0:01:58]} 15. Qd2 {[%clk 0:03:03]}  Nf6 {[%clk 0:01:53]} 16. a5 {[%clk 0:03:00]}  Qb4 {[%clk 0:01:32]} 17. Ra4 {[%clk 0:02:59]}  Ne4 {[%clk 0:01:18]} 18. Rxb4 {[%clk 0:02:59]}  Nxd2 {[%clk 0:01:18]} 19. Rb6 {[%clk 0:02:52]}  Nxf1 {[%clk 0:01:18]} 20. Rxf1 {[%clk 0:02:48]}  Rd8 {[%clk 0:01:14]} 21. e4 {[%clk 0:02:36]}  Re8 {[%clk 0:01:10]} 22. f3 {[%clk 0:02:35]}  f5 {[%clk 0:01:10]} 23. Kd2 {[%clk 0:02:27]}  Bxc3+ {[%clk 0:00:51]} 24. Kxc3 {[%clk 0:02:21]}  fxe4 {[%clk 0:00:52]} 25. fxe4 {[%clk 0:01:58]}  Rxe4 {[%clk 0:00:53]} 26. Re1 {[%clk 0:01:51]}  Bf5 {[%clk 0:00:39]} 27. Rxb7 {[%clk 0:01:42]}  Rxe1 {[%clk 0:00:39]} 28. Bxe1 {[%clk 0:01:43]}  Be4 {[%clk 0:00:39]} 29. Rd7 {[%clk 0:01:41]}  Bxg2 {[%clk 0:00:36]} 30. d6 {[%clk 0:01:39]}  Bc6 {[%clk 0:00:20]} 31. Rc7 {[%clk 0:01:36]}  Bb5 {[%clk 0:00:17]} 32. d7 {[%clk 0:01:35]}  Rf8 {[%clk 0:00:06]} 33. Bh4 {[%clk 0:01:32]}  Rf3+ {[%clk 0:00:04]} 34. Kc2 {[%clk 0:01:32]}  Bxd7 {[%clk 0:00:04]} 35. Rxd7 {[%clk 0:01:32]}  Rf4 {[%clk 0:00:03]} 36. Bg3 {[%clk 0:01:30]} 1-0


[Site "https://www.chess.com"]

[Event "Titled Tuesday Blitz March 14 Late 2023"]
[White "Yeletsky, Ivan"]
[Black "Koellner, Ruben Gideon"]
[WhiteFideId "24180327"]
[BlackFideId "12993093"]
[WhiteElo "2414"]
[BlackElo "2303"]
[Result "1-0"]
[Round "07"]
[TimeControl "180+2"]
[Date "2023.03.14"]
[WhiteClock "0:00:22"]
[BlackClock "0:00:04"]

1. b4 {[%clk 0:02:58]}  c6 {[%clk 0:02:58]} 2. e3 {[%clk 0:02:56]}  a5 {[%clk 0:02:58]} 3. b5 {[%clk 0:02:55]}  Nf6 {[%clk 0:02:53]} 4. Nf3 {[%clk 0:02:55]}  d5 {[%clk 0:02:52]} 5. c4 {[%clk 0:02:52]}  e6 {[%clk 0:02:50]} 6. Bb2 {[%clk 0:02:49]}  Be7 {[%clk 0:02:49]} 7. Nc3 {[%clk 0:02:47]}  O-O {[%clk 0:02:49]} 8. Rc1 {[%clk 0:02:45]}  Nbd7 {[%clk 0:02:46]} 9. Be2 {[%clk 0:02:34]}  Bd6 {[%clk 0:02:38]} 10. d4 {[%clk 0:02:29]}  Ne4 {[%clk 0:02:17]} 11. O-O {[%clk 0:02:12]}  f5 {[%clk 0:02:16]} 12. bxc6 {[%clk 0:02:12]}  bxc6 {[%clk 0:02:16]} 13. cxd5 {[%clk 0:02:13]}  cxd5 {[%clk 0:02:16]} 14. Nb5 {[%clk 0:02:13]}  Bb8 {[%clk 0:02:15]} 15. Ba3 {[%clk 0:02:11]}  Rf6 {[%clk 0:02:06]} 16. Qc2 {[%clk 0:02:01]}  Bb7 {[%clk 0:02:05]} 17. Nc7 {[%clk 0:01:56]}  Ra7 {[%clk 0:01:51]} 18. Bb5 {[%clk 0:01:49]}  Rh6 {[%clk 0:01:07]} 19. g3 {[%clk 0:01:41]}  g5 {[%clk 0:01:00]} 20. Bxd7 {[%clk 0:00:48]}  Qxd7 {[%clk 0:00:59]} 21. Ne5 {[%clk 0:00:49]}  Qd8 {[%clk 0:00:59]} 22. Nb5 {[%clk 0:00:45]}  Ra6 {[%clk 0:00:57]} 23. f3 {[%clk 0:00:45]}  Nf6 {[%clk 0:00:37]} 24. Qc5 {[%clk 0:00:32]}  Rb6 {[%clk 0:00:07]} 25. Nc7 {[%clk 0:00:31]}  Bxc7 {[%clk 0:00:06]} 26. Qxc7 {[%clk 0:00:31]}  Qxc7 {[%clk 0:00:07]} 27. Rxc7 {[%clk 0:00:32]}  Ba6 {[%clk 0:00:06]} 28. Rfc1 {[%clk 0:00:29]}  g4 {[%clk 0:00:05]} 29. R1c6 {[%clk 0:00:22]}  Rxc6 {[%clk 0:00:04]} 30. Rxc6 {[%clk 0:00:22]}  Be2 {[%clk 0:00:04]} 31. Rc8+ {[%clk 0:00:22]} 1-0


[Site "https://www.chess.com"]

[Event "Titled Tuesday Blitz March 14 Late 2023"]
[White "Galchenko, Matvey"]
[Black "Ismagilov, Damir"]
[WhiteFideId "24175480"]
[BlackFideId "34199982"]
[WhiteElo "2404"]
[BlackElo "2078"]
[Result "1-0"]
[Round "07"]
[TimeControl "180+2"]
[Date "2023.03.14"]
[WhiteClock "0:00:37"]
[BlackClock "0:00:10"]

1. f4 {[%clk 0:03:00]}  d5 {[%clk 0:02:59]} 2. Nf3 {[%clk 0:03:01]}  g6 {[%clk 0:02:59]} 3. g3 {[%clk 0:03:01]}  Bg7 {[%clk 0:02:59]} 4. Bg2 {[%clk 0:03:02]}  Nf6 {[%clk 0:02:57]} 5. O-O {[%clk 0:03:03]}  O-O {[%clk 0:02:58]} 6. d3 {[%clk 0:03:04]}  c5 {[%clk 0:02:58]} 7. Nc3 {[%clk 0:03:03]}  d4 {[%clk 0:02:56]} 8. Na4 {[%clk 0:03:04]}  Qc7 {[%clk 0:02:53]} 9. c4 {[%clk 0:03:04]}  Nbd7 {[%clk 0:02:24]} 10. a3 {[%clk 0:03:04]}  a5 {[%clk 0:02:22]} 11. Rb1 {[%clk 0:03:04]}  Ng4 {[%clk 0:02:17]} 12. b4 {[%clk 0:02:38]}  axb4 {[%clk 0:02:16]} 13. axb4 {[%clk 0:02:39]}  Ne3 {[%clk 0:02:15]} 14. Bxe3 {[%clk 0:02:37]}  dxe3 {[%clk 0:02:16]} 15. Nxc5 {[%clk 0:02:23]}  Nxc5 {[%clk 0:02:14]} 16. bxc5 {[%clk 0:02:24]}  Qxc5 {[%clk 0:02:14]} 17. Rb5 {[%clk 0:02:22]}  Qc7 {[%clk 0:02:11]} 18. Qb3 {[%clk 0:02:22]}  Ra7 {[%clk 0:01:50]} 19. Rb1 {[%clk 0:02:17]}  Rd8 {[%clk 0:01:25]} 20. Ne5 {[%clk 0:02:13]}  Bxe5 {[%clk 0:01:22]} 21. Rxe5 {[%clk 0:02:06]}  Rd6 {[%clk 0:00:53]} 22. c5 {[%clk 0:01:31]}  Rda6 {[%clk 0:00:52]} 23. d4 {[%clk 0:01:27]}  e6 {[%clk 0:00:41]} 24. Rxe3 {[%clk 0:01:20]}  Ra1 {[%clk 0:00:32]} 25. Rxa1 {[%clk 0:01:01]}  Rxa1+ {[%clk 0:00:33]} 26. Kf2 {[%clk 0:01:02]}  Qa5 {[%clk 0:00:30]} 27. Rc3 {[%clk 0:00:59]}  Ra2 {[%clk 0:00:20]} 28. Bf3 {[%clk 0:00:59]}  h5 {[%clk 0:00:20]} 29. Rc2 {[%clk 0:00:47]}  Ra3 {[%clk 0:00:20]} 30. Qc4 {[%clk 0:00:48]}  Bd7 {[%clk 0:00:18]} 31. Rb2 {[%clk 0:00:42]}  Ra1 {[%clk 0:00:16]} 32. Qb4 {[%clk 0:00:42]}  Qa6 {[%clk 0:00:15]} 33. Bxb7 {[%clk 0:00:41]}  Qa7 {[%clk 0:00:12]} 34. c6 {[%clk 0:00:41]}  Be8 {[%clk 0:00:11]} 35. c7 {[%clk 0:00:41]}  Rc1 {[%clk 0:00:10]} 36. c8=Q {[%clk 0:00:39]}  Qa1 {[%clk 0:00:10]} 37. Qxe8+ {[%clk 0:00:37]}  Kg7 {[%clk 0:00:10]} 38. Qbf8+ {[%clk 0:00:37]} 1-0


[Site "https://www.chess.com"]

[Event "Titled Tuesday Blitz March 14 Late 2023"]
[White "Christiansen, Johan-Sebastian"]
[Black "Gubajdullin, Alexei"]
[WhiteFideId "1512668"]
[BlackFideId "4141202"]
[WhiteElo "2517"]
[BlackElo "2267"]
[Result "1-0"]
[Round "07"]
[TimeControl "180+2"]
[Date "2023.03.14"]
[WhiteClock "0:00:09"]
[BlackClock "0:00:01"]

1. e4 {[%clk 0:03:00]}  g6 {[%clk 0:02:59]} 2. d4 {[%clk 0:03:01]}  Bg7 {[%clk 0:02:59]} 3. Nc3 {[%clk 0:03:01]}  c6 {[%clk 0:02:58]} 4. Nf3 {[%clk 0:03:01]}  d6 {[%clk 0:02:54]} 5. h3 {[%clk 0:03:02]}  Nf6 {[%clk 0:02:54]} 6. Bg5 {[%clk 0:03:03]}  O-O {[%clk 0:02:54]} 7. Qd2 {[%clk 0:03:03]}  Nbd7 {[%clk 0:02:51]} 8. Bd3 {[%clk 0:03:02]}  e5 {[%clk 0:02:51]} 9. O-O {[%clk 0:03:02]}  Re8 {[%clk 0:02:49]} 10. Rfe1 {[%clk 0:03:03]}  Qe7 {[%clk 0:02:48]} 11. Rad1 {[%clk 0:03:02]}  Nf8 {[%clk 0:02:39]} 12. Bh4 {[%clk 0:02:57]}  Qc7 {[%clk 0:02:30]} 13. d5 {[%clk 0:02:38]}  c5 {[%clk 0:02:13]} 14. a4 {[%clk 0:02:37]}  a6 {[%clk 0:02:08]} 15. Bf1 {[%clk 0:02:37]}  b6 {[%clk 0:02:07]} 16. Nh2 {[%clk 0:02:32]}  Bd7 {[%clk 0:02:01]} 17. g4 {[%clk 0:02:27]}  Reb8 {[%clk 0:02:00]} 18. f4 {[%clk 0:02:25]}  exf4 {[%clk 0:01:58]} 19. Qxf4 {[%clk 0:02:26]}  Ne8 {[%clk 0:01:55]} 20. Nf3 {[%clk 0:02:20]}  b5 {[%clk 0:01:39]} 21. Rd2 {[%clk 0:01:58]}  b4 {[%clk 0:01:33]} 22. Nd1 {[%clk 0:01:57]}  Bxa4 {[%clk 0:01:24]} 23. Rf2 {[%clk 0:01:58]}  f6 {[%clk 0:01:24]} 24. g5 {[%clk 0:01:57]}  Nd7 {[%clk 0:01:08]} 25. gxf6 {[%clk 0:01:57]}  Nexf6 {[%clk 0:01:07]} 26. Ng5 {[%clk 0:01:58]}  Nf8 {[%clk 0:00:41]} 27. Ne3 {[%clk 0:01:43]}  Nh5 {[%clk 0:00:38]} 28. Qf3 {[%clk 0:01:26]}  Bd4 {[%clk 0:00:23]} 29. Ng4 {[%clk 0:01:16]}  Qg7 {[%clk 0:00:20]} 30. Kh1 {[%clk 0:00:15]}  h6 {[%clk 0:00:19]} 31. Nf7 {[%clk 0:00:13]}  Bxf2 {[%clk 0:00:18]} 32. Qxf2 {[%clk 0:00:11]}  g5 {[%clk 0:00:13]} 33. Ngxh6+ {[%clk 0:00:10]}  Kh7 {[%clk 0:00:13]} 34. Bxg5 {[%clk 0:00:11]}  Qg6 {[%clk 0:00:11]} 35. Be2 {[%clk 0:00:09]}  Qxe4+ {[%clk 0:00:08]} 36. Bf3 {[%clk 0:00:09]}  Qg6 {[%clk 0:00:08]} 37. Be4 {[%clk 0:00:10]}  Re8 {[%clk 0:00:03]} 38. Bxg6+ {[%clk 0:00:08]}  Nxg6 {[%clk 0:00:03]} 39. Nxd6 {[%clk 0:00:08]}  Rxe1+ {[%clk 0:00:02]} 40. Qxe1 {[%clk 0:00:09]}  Rf8 {[%clk 0:00:02]} 41. Nhf5 {[%clk 0:00:09]}  Bd7 {[%clk 0:00:01]} 42. Qe2 {[%clk 0:00:09]} 1-0


[Site "https://www.chess.com"]

[Event "Titled Tuesday Blitz March 14 Late 2023"]
[White "Nazaretyan, Tigran"]
[Black "Preotu, Razvan"]
[WhiteFideId "24162345"]
[BlackFideId "2613280"]
[WhiteElo "2111"]
[BlackElo "2407"]
[Result "1/2-1/2"]
[Round "07"]
[TimeControl "180+2"]
[Date "2023.03.14"]
[WhiteClock "0:00:14"]
[BlackClock "0:00:02"]

1. d4 {[%clk 0:02:59]}  Nf6 {[%clk 0:02:59]} 2. c4 {[%clk 0:02:59]}  g6 {[%clk 0:03:00]} 3. Nf3 {[%clk 0:02:58]}  Bg7 {[%clk 0:03:00]} 4. Nc3 {[%clk 0:02:58]}  d5 {[%clk 0:03:00]} 5. Bg5 {[%clk 0:02:57]}  Ne4 {[%clk 0:02:59]} 6. Bh4 {[%clk 0:02:56]}  Nxc3 {[%clk 0:02:55]} 7. bxc3 {[%clk 0:02:57]}  dxc4 {[%clk 0:02:55]} 8. Qa4+ {[%clk 0:02:55]}  Qd7 {[%clk 0:02:53]} 9. Qxc4 {[%clk 0:02:54]}  b6 {[%clk 0:02:54]} 10. e3 {[%clk 0:02:54]}  Ba6 {[%clk 0:02:53]} 11. Qb3 {[%clk 0:02:54]}  Bxf1 {[%clk 0:02:54]} 12. Kxf1 {[%clk 0:02:55]}  Nc6 {[%clk 0:02:54]} 13. h3 {[%clk 0:02:43]}  Na5 {[%clk 0:02:54]} 14. Qc2 {[%clk 0:02:39]}  c5 {[%clk 0:02:39]} 15. Kg1 {[%clk 0:02:24]}  Rc8 {[%clk 0:02:29]} 16. Qe4 {[%clk 0:02:23]}  e6 {[%clk 0:01:55]} 17. Ne5 {[%clk 0:02:07]}  Qd5 {[%clk 0:01:52]} 18. Qxd5 {[%clk 0:01:43]}  exd5 {[%clk 0:01:53]} 19. Nf3 {[%clk 0:01:28]}  cxd4 {[%clk 0:01:51]} 20. cxd4 {[%clk 0:01:27]}  Kd7 {[%clk 0:01:48]} 21. Kh2 {[%clk 0:01:25]}  Rc2 {[%clk 0:01:48]} 22. Rhb1 {[%clk 0:01:15]}  f6 {[%clk 0:01:20]} 23. Ne1 {[%clk 0:01:07]}  Re2 {[%clk 0:01:13]} 24. Nd3 {[%clk 0:01:04]}  g5 {[%clk 0:01:11]} 25. Bg3 {[%clk 0:01:04]}  Rc8 {[%clk 0:01:11]} 26. Rb5 {[%clk 0:00:49]}  Ke6 {[%clk 0:01:11]} 27. Nb4 {[%clk 0:00:47]}  Rb2 {[%clk 0:01:07]} 28. a4 {[%clk 0:00:42]}  Bf8 {[%clk 0:01:02]} 29. Na6 {[%clk 0:00:38]}  Re2 {[%clk 0:00:35]} 30. Nc7+ {[%clk 0:00:35]}  Rxc7 {[%clk 0:00:34]} 31. Bxc7 {[%clk 0:00:36]}  Rxf2 {[%clk 0:00:34]} 32. Kg3 {[%clk 0:00:35]}  Rc2 {[%clk 0:00:33]} 33. Bb8 {[%clk 0:00:34]}  Nc6 {[%clk 0:00:33]} 34. Bxa7 {[%clk 0:00:25]}  Nxa7 {[%clk 0:00:34]} 35. Rxb6+ {[%clk 0:00:25]}  Bd6+ {[%clk 0:00:35]} 36. Kf3 {[%clk 0:00:25]}  h5 {[%clk 0:00:31]} 37. g4 {[%clk 0:00:24]}  Rh2 {[%clk 0:00:21]} 38. gxh5 {[%clk 0:00:24]}  Rxh3+ {[%clk 0:00:22]} 39. Ke2 {[%clk 0:00:24]}  Rxh5 {[%clk 0:00:22]} 40. a5 {[%clk 0:00:24]}  g4 {[%clk 0:00:16]} 41. a6 {[%clk 0:00:23]}  Rh7 {[%clk 0:00:14]} 42. Rb7 {[%clk 0:00:22]}  Rxb7 {[%clk 0:00:13]} 43. axb7 {[%clk 0:00:23]}  Nc6 {[%clk 0:00:13]} 44. Ra6 {[%clk 0:00:22]}  Nb8 {[%clk 0:00:13]} 45. Rb6 {[%clk 0:00:21]}  f5 {[%clk 0:00:13]} 46. Rb1 {[%clk 0:00:18]}  Nd7 {[%clk 0:00:09]} 47. Rh1 {[%clk 0:00:16]}  Nb8 {[%clk 0:00:02]} 48. Rh6+ {[%clk 0:00:15]}  Kd7 {[%clk 0:00:02]} 49. Rh5 {[%clk 0:00:15]}  Ke6 {[%clk 0:00:01]} 50. Rh6+ {[%clk 0:00:15]}  Kd7 {[%clk 0:00:02]} 51. Rh5 {[%clk 0:00:15]}  Ke6 {[%clk 0:00:02]} 52. Rh6+ {[%clk 0:00:14]} 1/2-1/2


[Site "https://www.chess.com"]

[Event "Titled Tuesday Blitz March 14 Late 2023"]
[White "Golubev, Mikhail"]
[Black "Cardoso Cardoso, Jose Gabriel"]
[WhiteFideId "14100983"]
[BlackFideId "4430492"]
[WhiteElo "2374"]
[BlackElo "2496"]
[Result "0-1"]
[Round "07"]
[TimeControl "180+2"]
[Date "2023.03.14"]
[WhiteClock "0:00:02"]
[BlackClock "0:02:04"]

1. e4 {[%clk 0:02:57]}  c5 {[%clk 0:03:00]} 2. Nf3 {[%clk 0:02:57]}  e6 {[%clk 0:03:00]} 3. d4 {[%clk 0:02:57]}  cxd4 {[%clk 0:03:01]} 4. Nxd4 {[%clk 0:02:56]}  Nc6 {[%clk 0:03:02]} 5. Nc3 {[%clk 0:02:57]}  a6 {[%clk 0:03:03]} 6. Be3 {[%clk 0:02:56]}  Nge7 {[%clk 0:03:02]} 7. Be2 {[%clk 0:02:40]}  Nxd4 {[%clk 0:03:03]} 8. Qxd4 {[%clk 0:02:40]}  Nc6 {[%clk 0:03:03]} 9. Qd2 {[%clk 0:02:40]}  b5 {[%clk 0:03:04]} 10. O-O {[%clk 0:02:35]}  Be7 {[%clk 0:03:05]} 11. Rad1 {[%clk 0:02:31]}  d6 {[%clk 0:03:04]} 12. a3 {[%clk 0:02:15]}  O-O {[%clk 0:03:04]} 13. f4 {[%clk 0:02:15]}  Rb8 {[%clk 0:03:04]} 14. Qe1 {[%clk 0:01:43]}  Qc7 {[%clk 0:02:57]} 15. f5 {[%clk 0:01:37]}  Ne5 {[%clk 0:02:49]} 16. Qg3 {[%clk 0:01:33]}  Kh8 {[%clk 0:02:49]} 17. Rf2 {[%clk 0:00:41]}  Qd8 {[%clk 0:02:39]} 18. Qh3 {[%clk 0:00:36]}  Bg5 {[%clk 0:02:37]} 19. Bd4 {[%clk 0:00:33]}  Nc6 {[%clk 0:02:31]} 20. Be3 {[%clk 0:00:19]}  Bxe3 {[%clk 0:02:31]} 21. Qxe3 {[%clk 0:00:20]}  Ne5 {[%clk 0:02:31]} 22. Kh1 {[%clk 0:00:19]}  Bb7 {[%clk 0:02:28]} 23. Rdf1 {[%clk 0:00:18]}  exf5 {[%clk 0:02:25]} 24. Rxf5 {[%clk 0:00:18]}  Qe7 {[%clk 0:02:22]} 25. Nd5 {[%clk 0:00:14]}  Bxd5 {[%clk 0:02:21]} 26. exd5 {[%clk 0:00:14]}  Rbe8 {[%clk 0:02:19]} 27. Qh3 {[%clk 0:00:14]}  g6 {[%clk 0:02:17]} 28. Rf6 {[%clk 0:00:12]}  Nd7 {[%clk 0:02:13]} 29. R6f2 {[%clk 0:00:12]}  Kg7 {[%clk 0:02:10]} 30. a4 {[%clk 0:00:10]}  bxa4 {[%clk 0:02:06]} 31. Bxa6 {[%clk 0:00:10]}  Nc5 {[%clk 0:02:06]} 32. Bc4 {[%clk 0:00:04]}  Qe5 {[%clk 0:02:05]} 33. Qa3 {[%clk 0:00:02]}  Ne4 {[%clk 0:02:04]} 0-1


[Site "https://www.chess.com"]

[Event "Titled Tuesday Blitz March 14 Late 2023"]
[White "Korchmar, Vasiliy"]
[Black "Filgueiras, Nathan Felipe"]
[WhiteFideId "24131750"]
[BlackFideId "2188562"]
[WhiteElo "2370"]
[BlackElo "2241"]
[Result "0-1"]
[Round "07"]
[TimeControl "180+2"]
[Date "2023.03.14"]
[WhiteClock "0:00:04"]
[BlackClock "0:00:53"]

1. e4 {[%clk 0:03:00]}  c5 {[%clk 0:03:00]} 2. Nf3 {[%clk 0:03:00]}  Nc6 {[%clk 0:03:01]} 3. d4 {[%clk 0:03:01]}  cxd4 {[%clk 0:03:01]} 4. Nxd4 {[%clk 0:03:01]}  e5 {[%clk 0:03:02]} 5. Nb5 {[%clk 0:03:01]}  d6 {[%clk 0:03:03]} 6. c4 {[%clk 0:02:58]}  Be7 {[%clk 0:03:02]} 7. Bd3 {[%clk 0:02:57]}  Be6 {[%clk 0:02:58]} 8. O-O {[%clk 0:02:56]}  Nf6 {[%clk 0:02:58]} 9. h3 {[%clk 0:02:52]}  O-O {[%clk 0:02:56]} 10. Be3 {[%clk 0:02:53]}  a6 {[%clk 0:02:46]} 11. N5c3 {[%clk 0:02:52]}  Rc8 {[%clk 0:02:47]} 12. Nd5 {[%clk 0:02:49]}  Nd7 {[%clk 0:02:47]} 13. Nbc3 {[%clk 0:02:47]}  Nc5 {[%clk 0:02:44]} 14. Bc2 {[%clk 0:02:32]}  Bg5 {[%clk 0:02:32]} 15. Qd2 {[%clk 0:01:23]}  Bxe3 {[%clk 0:02:29]} 16. fxe3 {[%clk 0:01:24]}  Ne7 {[%clk 0:02:13]} 17. b4 {[%clk 0:01:16]}  Nd7 {[%clk 0:02:12]} 18. Bb3 {[%clk 0:01:12]}  Nb6 {[%clk 0:02:10]} 19. Qd3 {[%clk 0:01:03]}  Nexd5 {[%clk 0:02:05]} 20. exd5 {[%clk 0:00:57]}  Bd7 {[%clk 0:02:05]} 21. Ne4 {[%clk 0:00:53]}  Ba4 {[%clk 0:01:34]} 22. Rf2 {[%clk 0:00:40]}  Bxb3 {[%clk 0:01:33]} 23. axb3 {[%clk 0:00:41]}  f5 {[%clk 0:01:30]} 24. Nc3 {[%clk 0:00:34]}  g6 {[%clk 0:01:27]} 25. e4 {[%clk 0:00:31]}  f4 {[%clk 0:01:27]} 26. Rc1 {[%clk 0:00:31]}  Nd7 {[%clk 0:01:26]} 27. Qf3 {[%clk 0:00:26]}  Qb6 {[%clk 0:01:25]} 28. b5 {[%clk 0:00:23]}  Kg7 {[%clk 0:01:19]} 29. Kh1 {[%clk 0:00:18]}  axb5 {[%clk 0:01:16]} 30. Nxb5 {[%clk 0:00:17]}  Nf6 {[%clk 0:01:16]} 31. Ra2 {[%clk 0:00:13]}  Nh5 {[%clk 0:01:15]} 32. Kh2 {[%clk 0:00:09]}  Ng3 {[%clk 0:01:14]} 33. Raa1 {[%clk 0:00:07]}  h5 {[%clk 0:01:11]} 34. b4 {[%clk 0:00:07]}  g5 {[%clk 0:01:06]} 35. Qa3 {[%clk 0:00:04]}  Ra8 {[%clk 0:00:56]} 36. Qc3 {[%clk 0:00:05]}  Rxa1 {[%clk 0:00:54]} 37. Rxa1 {[%clk 0:00:06]}  g4 {[%clk 0:00:54]} 38. Qd3 {[%clk 0:00:04]}  gxh3 {[%clk 0:00:53]} 39. gxh3 {[%clk 0:00:04]}  Qf2# {[%clk 0:00:53]} 0-1


[Site "https://www.chess.com"]

[Event "Titled Tuesday Blitz March 14 Late 2023"]
[White "Mirzoev, Azer"]
[Black "Rangel, Daniel"]
[WhiteFideId "13400304"]
[BlackFideId "2124475"]
[WhiteElo "2525"]
[BlackElo "2256"]
[Result "1-0"]
[Round "07"]
[TimeControl "180+2"]
[Date "2023.03.14"]
[WhiteClock "0:01:15"]
[BlackClock "0:00:45"]

1. c4 {[%clk 0:02:59]}  Nf6 {[%clk 0:02:54]} 2. Nc3 {[%clk 0:02:59]}  e6 {[%clk 0:02:55]} 3. g3 {[%clk 0:03:00]}  d5 {[%clk 0:02:55]} 4. d4 {[%clk 0:03:00]}  Be7 {[%clk 0:02:52]} 5. Bg2 {[%clk 0:03:00]}  O-O {[%clk 0:02:53]} 6. Nf3 {[%clk 0:02:58]}  a5 {[%clk 0:02:52]} 7. O-O {[%clk 0:02:56]}  c6 {[%clk 0:02:52]} 8. b3 {[%clk 0:02:55]}  b6 {[%clk 0:02:51]} 9. Bb2 {[%clk 0:02:53]}  Ba6 {[%clk 0:02:50]} 10. Nd2 {[%clk 0:02:51]}  b5 {[%clk 0:02:49]} 11. Rc1 {[%clk 0:02:39]}  b4 {[%clk 0:02:32]} 12. Na4 {[%clk 0:02:38]}  Nbd7 {[%clk 0:02:32]} 13. e4 {[%clk 0:02:37]}  Nb6 {[%clk 0:02:15]} 14. Nxb6 {[%clk 0:02:23]}  Qxb6 {[%clk 0:02:16]} 15. Re1 {[%clk 0:02:22]}  Rfd8 {[%clk 0:01:50]} 16. Qc2 {[%clk 0:02:15]}  Rac8 {[%clk 0:01:42]} 17. h4 {[%clk 0:02:12]}  c5 {[%clk 0:01:35]} 18. exd5 {[%clk 0:02:11]}  cxd4 {[%clk 0:01:27]} 19. dxe6 {[%clk 0:02:11]}  fxe6 {[%clk 0:01:28]} 20. Qd3 {[%clk 0:02:05]}  Bc5 {[%clk 0:01:20]} 21. Ne4 {[%clk 0:02:00]}  e5 {[%clk 0:01:15]} 22. Rc2 {[%clk 0:01:37]}  Rf8 {[%clk 0:00:58]} 23. Rce2 {[%clk 0:01:31]}  Rce8 {[%clk 0:00:56]} 24. Bc1 {[%clk 0:01:20]}  Ng4 {[%clk 0:00:51]} 25. Ng5 {[%clk 0:01:16]}  Bb7 {[%clk 0:00:45]} 26. Qxh7# {[%clk 0:01:15]} 1-0


[Site "https://www.chess.com"]